[Event "22nd Ruzomberok Open 2019"]
[Site "Ruzomberok"]
[Date "2019.06.30"]
[Round "2.19"]
[White "Pasztor, Ladislav"]
[Black "Holly, Andrej"]
[Result "0-1"]
[ECO "B30"]
[WhiteElo "1857"]
[BlackElo "2046"]
[Annotator "NA"]
[PlyCount "148"]
[EventDate "2019.06.29"]
[EventType "swiss"]
[EventCountry "SVK"]
[SourceTitle "playchess.com"]
[Source "ChessBase"]
[SourceQuality "1"]
[TimeControl "40/5400+30:1800+30"]

1. e4 {[%emt 0:00:00]} c5 {[%emt 0:00:00]} 2. Nf3 {[%emt 0:00:00]} Nc6 {[%emt 0:00:00]} 3. c3 {[%emt 0:00:50]} Nf6 {[%emt 0:01:06]} 4. e5 {[%emt 0:01:11]} Nd5 {[%emt 0:03:02]} 5. d4 {[%emt 0:02:21]} cxd4 {[%emt 0:01:22]} 6. cxd4 {[%emt 0:00:03]} g6 {[%emt 0:07:10]} 7. Bc4 {[%emt 0:03:30]} Nb6 {[%emt 0:00:51]} 8. Bb3 {[%emt 0:14:23]} Bg7 {[%emt 0:00:37]} 9. O-O {[%emt 0:01:15]} O-O {[%emt 0:07:42]} 10. Nc3 {[%emt 0:00:38]} d6 {[%emt 0:02:12]} 11. Bf4 {[%emt 0:01:47]} Bg4 {[%emt 0:04:13]} 12. Re1 {[%emt 0:02:12]} Qd7 {[%emt 0:15:00]} 13. Bg3 {[%emt 0:13:09]} Bxf3 {[%emt 0:01:44]} 14. gxf3 {[%emt 0:00:28]} e6 {[%emt 0:14:01]} 15. d5 {[%emt 0:04:30]} exd5 {[%emt 0:13:11]} 16. exd6 {[%emt 0:01:34]} Bxc3 {[%emt 0:03:52]} 17. bxc3 {[%emt 0:00:39]} Qf5 {[%emt 0:00:44]} 18. Kg2 {[%emt 0:03:20]} Rfe8 {[%emt 0:02:13]} 19. Qd2 {[%emt 0:01:06]} Na5 {[%emt 0:04:50]} 20. Rxe8+ {[%emt 0:04:59]} Rxe8 {[%emt 0:00:01]} 21. Re1 {[%emt 0:00:18]} Re6 {[%emt 0:02:42]} 22. Rxe6 {[%emt 0:13:10]} fxe6 {[%emt 0:04:44]} 23. Bc2 {[%emt 0:06:12]} Qf6 {[%emt 0:00:39]} 24. Qh6 {[%emt 0:04:46]} Nac4 {[%emt 0:01:39]} 25. Bh4 {[%emt 0:01:42]} Qxc3 {[%emt 0:04:58]} 26. Qf4 {[%emt 0:09:05]} Qxc2 {[%emt 0:01:49]} 27. Qf6 {[%emt 0:04:10]} Qf5 {[%emt 0:01:09]} 28. Qe7 {[%emt 0:02:05]} Qf7 {[%emt 0:00:32]} 29. Qd8+ {[%emt 0:01:07]} Qf8 {[%emt 0:00:02]} 30. Qc7 {[%emt 0:00:34]} Qxd6 {[%emt 0:01:10]} 31. Qxb7 {[%emt 0:00:37]} Qd7 {[%emt 0:00:50]} 32. Qb8+ {[%emt 0:01:04]} Kg7 {[%emt 0:00:24]} 33. Bg3 {[%emt 0:01:21]} d4 {[%emt 0:00:49]} 34. h4 {[%emt 0:00:32]} d3 {[%emt 0:00:36]} 35. h5 {[%emt 0:00:17]} gxh5 {[%emt 0:00:37]} 36. Qf4 {[%emt 0:01:42]} Qf7 {[%emt 0:00:40]} 37. Qd4+ {[%emt 0:00:23]} Qf6 {[%emt 0:00:32]} 38. Qxd3 {[%emt 0:00:08]} h4 {[%emt 0:00:12]} 39. Bb8 {[%emt 0:00:31]} Qg6+ {[%emt 0:00:14]} 40. Qxg6+ {[%emt 0:00:31]} hxg6 {[%emt 0:00:02]} 41. Bxa7 {[%emt 0:30:17]} g5 {[%emt 0:30:24]} 42. Kh3 {[%emt 0:00:00]} Kg6 {[%emt 0:00:00]} 43. f4 {[%emt 0:00:00]} Nd5 {[%emt 0:00:00]} 44. fxg5 {[%emt 0:00:00]} Kxg5 {[%emt 0:00:00]} 45. Bb8 {[%emt 0:00:00]} Nf4+ {[%emt 0:00:00]} 46. Kh2 {[%emt 0:00:00]} Kg4 {[%emt 0:00:00]} 47. a4 {[%emt 0:00:00]} Nd3 {[%emt 0:00:00]} 48. f3+ {[%emt 0:00:00]} Kh5 {[%emt 0:00:00]} 49. Bc7 {[%emt 0:00:00]} Ne1 {[%emt 0:00:00]} 50. f4 {[%emt 0:00:00]} Kg4 {[%emt 0:00:00]} 51. a5 {[%emt 0:00:00]} Nf3+ {[%emt 0:00:00]} 52. Kh1 {[%emt 0:00:00]} Nxa5 {[%emt 0:00:00]} 53. Bxa5 {[%emt 0:00:00]} Kxf4 {[%emt 0:00:00]} 54. Kg2 {[%emt 0:00:00]} Kg4 {[%emt 0:00:00]} 55. Bc7 {[%emt 0:00:00]} Nd4 {[%emt 0:00:00]} 56. Bd6 {[%emt 0:00:00]} Nf5 {[%emt 0:00:00]} 57. Be5 {[%emt 0:00:00]} Ne7 {[%emt 0:00:00]} 58. Bd6 {[%emt 0:00:44]} Ng6 {[%emt 0:00:00]} 59. Bc7 {[%emt 0:00:40]} Nf4+ {[%emt 0:00:00]} 60. Kf2 {[%emt 0:00:48]} h3 {[%emt 0:00:00]} 61. Kg1 {[%emt 0:01:08]} Nd3 {[%emt 0:00:00]} 62. Kh2 {[%emt 0:02:10]} e5 {[%emt 0:00:00]} 63. Bb6 {[%emt 0:01:09]} e4 {[%emt 0:00:00]} 64. Be3 {[%emt 0:01:42]} Kf3 {[%emt 0:00:00]} 65. Bb6 {[%emt 0:01:34]} Nf4 {[%emt 0:00:00]} 66. Ba5 {[%emt 0:01:40]} e3 {[%emt 0:00:48]} 67. Bc3 {[%emt 0:02:05]} e2 {[%emt 0:00:11]} 68. Bd2 {[%emt 0:01:11]} Kg4 {[%emt 0:00:08]} 69. Kg1 {[%emt 0:00:30]} Nd3 {[%emt 0:00:08]} 70. Kh2 {[%emt 0:00:34]} e1=Q 71. Bxe1 {[%emt 0:00:14]} Nxe1 {[%emt 0:00:16]} 72. Kh1 {[%emt 0:00:15]} Kg3 {[%emt 0:00:01]} 73. Kg1 {[%emt 0:00:14]} Nd3 {[%emt 0:00:02]} 74. Kh1 {[%emt 0:00:44]} Nf2+ {[%emt 0:00:02]} 0-1

[Event "22nd Ruzomberok Open 2019"]
[Site "Ruzomberok"]
[Date "2019.06.30"]
[Round "2.20"]
[White "Bartek, Ladislav"]
[Black "Polko, Pavol"]
[Result "1-0"]
[ECO "B28"]
[WhiteElo "2042"]
[BlackElo "1638"]
[Annotator "NA"]
[PlyCount "77"]
[EventDate "2019.06.29"]
[EventType "swiss"]
[EventCountry "SVK"]
[SourceTitle "playchess.com"]
[Source "ChessBase"]
[SourceQuality "1"]
[TimeControl "40/5400+30:1800+30"]

1. e4 {[%emt 0:00:00]} c5 {[%emt 0:00:00]} 2. Nf3 {[%emt 0:00:00]} a6 {[%emt 0:00:00]} 3. c4 {[%emt 0:00:00]} Nc6 {[%emt 0:00:02]} 4. d4 {[%emt 0:00:05]} cxd4 {[%emt 0:00:14]} 5. Nxd4 {[%emt 0:00:08]} e5 {[%emt 0:00:22]} 6. Nc2 {[%emt 0:00:32]} Bc5 {[%emt 0:00:15]} 7. Nc3 {[%emt 0:04:47]} d6 {[%emt 0:00:52]} 8. Be2 {[%emt 0:00:29]} Be6 {[%emt 0:00:47]} 9. O-O {[%emt 0:00:58]} h6 {[%emt 0:00:26]} 10. Kh1 {[%emt 0:07:11]} Nf6 {[%emt 0:00:44]} 11. f4 {[%emt 0:01:28]} exf4 {[%emt 0:00:44]} 12. Bxf4 {[%emt 0:00:29]} Ne5 {[%emt 0:00:20]} 13. b4 {[%emt 0:01:23]} Ba7 {[%emt 0:01:19]} 14. c5 {[%emt 0:00:10]} Nc4 {[%emt 0:01:03]} 15. Nd4 {[%emt 0:02:20]} d5 {[%emt 0:02:48]} 16. Nxe6 {[%emt 0:01:46]} fxe6 {[%emt 0:00:03]} 17. e5 {[%emt 0:00:40]} Ne4 {[%emt 0:01:36]} 18. Nxe4 {[%emt 0:00:15]} dxe4 {[%emt 0:00:02]} 19. Bxc4 {[%emt 0:00:34]} Qxd1 {[%emt 0:00:08]} 20. Raxd1 {[%emt 0:00:13]} Rd8 {[%emt 0:01:07]} 21. Rxd8+ {[%emt 0:01:48]} Kxd8 {[%emt 0:00:02]} 22. Rd1+ {[%emt 0:00:30]} Ke7 {[%emt 0:00:33]} 23. Rd6 {[%emt 0:00:13]} b5 {[%emt 0:00:44]} 24. Rxe6+ {[%emt 0:01:01]} Kd7 {[%emt 0:00:26]} 25. Rd6+ {[%emt 0:00:33]} Ke7 {[%emt 0:00:14]} 26. Be2 {[%emt 0:00:25]} a5 {[%emt 0:01:30]} 27. a3 {[%emt 0:01:35]} Rf8 {[%emt 0:00:43]} 28. Bg3 {[%emt 0:00:19]} Rb8 {[%emt 0:00:32]} 29. Rg6 {[%emt 0:00:38]} Kf7 {[%emt 0:00:47]} 30. Bh5 {[%emt 0:00:10]} Kg8 {[%emt 0:01:08]} 31. e6 {[%emt 0:00:37]} Re8 {[%emt 0:02:21]} 32. Be5 {[%emt 0:00:44]} Re7 {[%emt 0:00:38]} 33. Bd6 {[%emt 0:00:10]} Re8 {[%emt 0:00:35]} 34. Rxg7+ {[%emt 0:00:19]} Kxg7 {[%emt 0:00:25]} 35. Bxe8 {[%emt 0:00:07]} axb4 {[%emt 0:01:02]} 36. axb4 {[%emt 0:00:10]} Kf6 {[%emt 0:00:21]} 37. e7 {[%emt 0:00:22]} e3 {[%emt 0:00:45]} 38. Bxb5 {[%emt 0:00:08]} e2 {[%emt 0:00:16]} 39. e8=Q {[%emt 0:00:11] Ke5} 1-0

[Event "22nd Ruzomberok Open 2019"]
[Site "Ruzomberok"]
[Date "2019.06.30"]
[Round "2.21"]
[White "Zilkay, Dominik"]
[Black "Bakalar, Jan"]
[Result "0-1"]
[ECO "B22"]
[WhiteElo "1328"]
[BlackElo "1969"]
[Annotator "NA"]
[PlyCount "112"]
[EventDate "2019.06.29"]
[EventType "swiss"]
[EventCountry "SVK"]
[SourceTitle "playchess.com"]
[Source "ChessBase"]
[SourceQuality "1"]
[TimeControl "40/5400+30:1800+30"]

1. e4 {[%emt 0:04:47]} c5 {[%emt 0:03:35]} 2. c3 {[%emt 0:00:09]} d5 {[%emt 0:01:10]} 3. exd5 {[%emt 0:00:09]} Qxd5 {[%emt 0:00:02]} 4. d4 {[%emt 0:00:11]} e6 {[%emt 0:00:24]} 5. Nf3 {[%emt 0:00:12]} Nf6 {[%emt 0:00:09]} 6. a3 {[%emt 0:00:42]} Nc6 {[%emt 0:03:15]} 7. Be3 {[%emt 0:00:11]} cxd4 {[%emt 0:00:22]} 8. cxd4 {[%emt 0:00:03]} Be7 {[%emt 0:00:34]} 9. Nc3 {[%emt 0:00:04]} Qd8 {[%emt 0:00:07]} 10. Bd3 {[%emt 0:00:16]} O-O {[%emt 0:01:04]} 11. O-O {[%emt 0:00:03]} b6 {[%emt 0:03:13]} 12. Qe2 {[%emt 0:00:44]} Bb7 {[%emt 0:00:51]} 13. Rac1 {[%emt 0:07:20]} a6 {[%emt 0:08:40]} 14. Bb1 {[%emt 0:03:02]} Re8 {[%emt 0:05:47]} 15. h3 {[%emt 0:06:32]} b5 {[%emt 0:02:57]} 16. b4 {[%emt 0:02:57]} g6 {[%emt 0:01:22]} 17. Ba2 {[%emt 0:01:47]} Rc8 {[%emt 0:02:00]} 18. Qd3 {[%emt 0:01:47]} Qd7 {[%emt 0:05:43]} 19. Qd2 {[%emt 0:03:35]} Red8 {[%emt 0:03:47]} 20. Rfd1 {[%emt 0:00:43]} Qe8 {[%emt 0:04:33]} 21. Qe1 {[%emt 0:05:44]} Nb8 {[%emt 0:05:04]} 22. Ne5 {[%emt 0:02:44]} Nbd7 {[%emt 0:01:36]} 23. Bh6 {[%emt 0:11:52]} Bf8 {[%emt 0:05:31]} 24. Bg5 {[%emt 0:00:21]} Bg7 {[%emt 0:02:27]} 25. Qe3 {[%emt 0:06:10]} Nxe5 {[%emt 0:02:44]} 26. dxe5 {[%emt 0:06:16]} Rxd1+ {[%emt 0:00:28]} 27. Nxd1 {[%emt 0:00:08]} Nd5 {[%emt 0:03:57]} 28. Qe1 {[%emt 0:08:46]} Rxc1 {[%emt 0:01:43]} 29. Bxc1 {[%emt 0:00:04]} Qc6 {[%emt 0:00:38]} 30. Bxd5 {[%emt 0:04:37]} Qxd5 {[%emt 0:01:02]} 31. Ne3 {[%emt 0:01:09]} Qxe5 {[%emt 0:00:13]} 32. Qd2 {[%emt 0:04:46]} Bd5 {[%emt 0:02:14]} 33. Qc2 {[%emt 0:01:10]} Qc3 {[%emt 0:01:26]} 34. Qxc3 {[%emt 0:05:19]} Bxc3 {[%emt 0:00:45]} 35. g3 {[%emt 0:02:42]} f5 {[%emt 0:01:00]} 36. Nd1 {[%emt 0:00:57]} Bf6 {[%emt 0:00:42]} 37. Nb2 {[%emt 0:01:03]} Be4 {[%emt 0:01:23]} 38. h4 {[%emt 0:00:28]} Bc2 {[%emt 0:00:53]} 39. Kf1 {[%emt 0:00:43]} e5 {[%emt 0:00:48]} 40. Ke2 {[%emt 0:00:44]} e4 {[%emt 0:00:39]} 41. Nd1 {[%emt 0:32:15]} Bxd1+ {[%emt 0:31:55]} 42. Kxd1 {[%emt 0:00:05]} Kg7 {[%emt 0:00:06]} 43. Kc2 {[%emt 0:01:25]} h6 {[%emt 0:00:10]} 44. Kb3 {[%emt 0:01:08]} g5 {[%emt 0:00:15]} 45. hxg5 {[%emt 0:00:17]} hxg5 {[%emt 0:00:16]} 46. Be3 {[%emt 0:05:16]} Kg6 {[%emt 0:00:51]} 47. a4 {[%emt 0:00:08]} Be5 {[%emt 0:00:25]} 48. axb5 {[%emt 0:00:25]} axb5 {[%emt 0:00:03]} 49. Kc2 {[%emt 0:00:53]} f4 {[%emt 0:00:17]} 50. gxf4 {[%emt 0:00:46]} gxf4 {[%emt 0:00:06]} 51. Bc5 {[%emt 0:00:07]} Kf5 {[%emt 0:00:34]} 52. Kd2 {[%emt 0:00:00]} Ke6 {[%emt 0:00:00]} 53. Bb6 {[%emt 0:00:00]} Kd5 {[%emt 0:00:00]} 54. Kc2 {[%emt 0:00:00]} Kc4 {[%emt 0:00:00]} 55. Bc5 {[%emt 0:00:00]} Bd4 {[%emt 0:00:00]} 56. Bd6 {[%emt 0:00:00]} f3 {[%emt 0:00:00]} 0-1

[Event "22nd Ruzomberok Open 2019"]
[Site "Ruzomberok"]
[Date "2019.06.30"]
[Round "2.22"]
[White "Taragel, Marian"]
[Black "Tomanek, Rafael"]
[Result "1-0"]
[ECO "B14"]
[WhiteElo "1636"]
[BlackElo "1880"]
[Annotator "NA"]
[PlyCount "67"]
[EventDate "2019.06.29"]
[EventType "swiss"]
[EventCountry "SVK"]
[SourceTitle "playchess.com"]
[Source "ChessBase"]
[SourceQuality "1"]
[TimeControl "40/5400+30:1800+30"]

1. e4 {[%emt 0:00:00]} c6 {[%emt 0:00:00]} 2. d4 {[%emt 0:00:42]} d5 {[%emt 0:00:00]} 3. exd5 {[%emt 0:01:24]} cxd5 {[%emt 0:00:00]} 4. c4 {[%emt 0:01:36]} Nf6 {[%emt 0:00:11]} 5. Nc3 {[%emt 0:01:49]} e6 {[%emt 0:01:17]} 6. Nf3 {[%emt 0:00:56]} Bb4 {[%emt 0:00:25]} 7. cxd5 {[%emt 0:00:56]} Nxd5 {[%emt 0:01:48]} 8. Bd2 {[%emt 0:01:03]} O-O {[%emt 0:03:28]} 9. Bd3 {[%emt 0:01:20]} Nd7 {[%emt 0:04:50]} 10. O-O {[%emt 0:02:42]} N7f6 {[%emt 0:04:23]} 11. Qc2 {[%emt 0:01:42]} Bxc3 {[%emt 0:07:11]} 12. bxc3 {[%emt 0:01:46]} b6 {[%emt 0:00:45]} 13. Ng5 {[%emt 0:01:51]} g6 {[%emt 0:05:32]} 14. c4 {[%emt 0:04:37]} Ne7 {[%emt 0:06:56]} 15. Bc3 {[%emt 0:01:43]} Nf5 {[%emt 0:07:54]} 16. Qb2 {[%emt 0:03:05]} Bb7 {[%emt 0:03:48]} 17. Rfe1 {[%emt 0:15:44]} h6 {[%emt 0:06:34]} 18. Bxf5 {[%emt 0:08:42]} gxf5 {[%emt 0:02:16]} 19. d5 {[%emt 0:04:13]} Nxd5 {[%emt 0:02:00]} 20. cxd5 {[%emt 0:04:24]} Qxg5 {[%emt 0:00:47]} 21. Bf6 {[%emt 0:05:00]} Qg6 {[%emt 0:01:38]} 22. f4 {[%emt 0:02:27]} Kh7 {[%emt 0:04:57]} 23. dxe6 {[%emt 0:02:12]} fxe6 {[%emt 0:04:39]} 24. Rxe6 {[%emt 0:02:16]} Rf7 {[%emt 0:03:52]} 25. Rae1 {[%emt 0:03:58]} Be4 {[%emt 0:05:29]} 26. Re3 {[%emt 0:02:54]} Qh5 {[%emt 0:04:47]} 27. Rg3 {[%emt 0:06:16]} Qd1+ {[%emt 0:01:10]} 28. Kf2 {[%emt 0:00:14]} Rc8 {[%emt 0:02:04]} 29. Bc3 {[%emt 0:02:55]} Rd7 {[%emt 0:03:26]} 30. Rxh6+ {[%emt 0:02:11]} Kxh6 {[%emt 0:01:25]} 31. Bg7+ {[%emt 0:00:39]} Kh5 {[%emt 0:02:17]} 32. Rh3+ {[%emt 0:01:13]} Kg4 {[%emt 0:00:40]} 33. Rh4+ {[%emt 0:00:18]} Kxh4 {[%emt 0:00:41]} 34. Qf6+ {[%emt 0:00:11]} 1-0

[Event "22nd Ruzomberok Open 2019"]
[Site "Ruzomberok"]
[Date "2019.06.30"]
[Round "2.23"]
[White "Kukan, Michal"]
[Black "Borsos, Bogdan"]
[Result "0-1"]
[ECO "A10"]
[WhiteElo "1698"]
[BlackElo "2216"]
[Annotator "NA"]
[PlyCount "112"]
[EventDate "2019.06.29"]
[EventType "swiss"]
[EventCountry "SVK"]
[SourceTitle "playchess.com"]
[Source "ChessBase"]
[SourceQuality "1"]
[TimeControl "40/5400+30:1800+30"]

1. c4 {[%emt 0:00:00]} d6 {[%emt 0:00:30]} 2. Nc3 {[%emt 0:00:00]} e5 {[%emt 0:00:10]} 3. g3 {[%emt 0:00:19]} Nf6 {[%emt 0:00:33]} 4. Bg2 {[%emt 0:00:21]} Be7 {[%emt 0:00:31]} 5. Nf3 {[%emt 0:00:23]} O-O {[%emt 0:00:06]} 6. O-O {[%emt 0:00:09]} Nc6 {[%emt 0:00:17]} 7. d4 {[%emt 0:00:48]} Bg4 {[%emt 0:00:07]} 8. dxe5 {[%emt 0:02:35]} dxe5 {[%emt 0:00:09]} 9. h3 {[%emt 0:02:19]} Be6 {[%emt 0:00:15]} 10. b3 {[%emt 0:00:51]} h6 {[%emt 0:00:41]} 11. Bb2 {[%emt 0:00:59]} Qc8 {[%emt 0:00:09]} 12. Kh2 {[%emt 0:02:26]} Rd8 {[%emt 0:00:06]} 13. Qe1 {[%emt 0:00:56]} Nd4 {[%emt 0:04:41]} 14. Rc1 {[%emt 0:04:45]} Nxf3+ {[%emt 0:09:05]} 15. exf3 {[%emt 0:00:36]} Nd7 {[%emt 0:00:08]} 16. Qe4 {[%emt 0:06:20]} Nc5 {[%emt 0:02:09]} 17. Qe2 {[%emt 0:02:10]} Nd3 {[%emt 0:02:26]} 18. Rcd1 {[%emt 0:02:02]} Nxb2 {[%emt 0:00:11]} 19. Qxb2 {[%emt 0:00:15]} c6 {[%emt 0:00:10]} 20. Rxd8+ {[%emt 0:00:49]} Qxd8 {[%emt 0:00:40]} 21. Rd1 {[%emt 0:01:38]} Qc7 {[%emt 0:03:24]} 22. Ne2 {[%emt 0:05:59]} Bf6 {[%emt 0:04:13]} 23. Qc2 {[%emt 0:00:51]} Rd8 {[%emt 0:08:57]} 24. f4 {[%emt 0:00:56]} Rxd1 {[%emt 0:00:56]} 25. Qxd1 {[%emt 0:00:19]} Qd7 {[%emt 0:01:37]} 26. Qxd7 {[%emt 0:01:50]} Bxd7 {[%emt 0:00:06]} 27. Be4 {[%emt 0:02:11]} Kf8 {[%emt 0:00:45]} 28. Kg2 {[%emt 0:01:38]} Ke7 {[%emt 0:01:21]} 29. c5 {[%emt 0:05:25]} exf4 {[%emt 0:02:24]} 30. Nxf4 {[%emt 0:02:22]} Bd4 {[%emt 0:00:27]} 31. b4 {[%emt 0:07:36]} Bc3 {[%emt 0:01:16]} 32. a3 {[%emt 0:01:00]} g5 {[%emt 0:02:44]} 33. Nd3 {[%emt 0:01:22]} f5 {[%emt 0:00:31]} 34. Bf3 {[%emt 0:02:18]} Be6 {[%emt 0:00:11]} 35. Be2 {[%emt 0:08:53]} Bd5+ {[%emt 0:01:37]} 36. Kh2 {[%emt 0:06:01]} a5 {[%emt 0:02:48]} 37. bxa5 {[%emt 0:08:20]} Bxa5 {[%emt 0:00:51]} 38. Nb4 {[%emt 0:00:19]} Be6 {[%emt 0:06:11]} 39. h4 {[%emt 0:05:33]} Kf6 {[%emt 0:01:36]} 40. hxg5+ {[%emt 0:01:54]} hxg5 {[%emt 0:00:05]} 41. f4 {[%emt 0:31:01]} Bc7 {[%emt 0:30:09]} 42. fxg5+ {[%emt 0:01:17]} Kxg5 {[%emt 0:00:05]} 43. Bf3 {[%emt 0:01:03]} Bc4 {[%emt 0:01:53]} 44. Nxc6 {[%emt 0:01:04]} bxc6 {[%emt 0:00:11]} 45. Bxc6 {[%emt 0:00:14]} Kg4 {[%emt 0:00:48]} 46. Bd7 {[%emt 0:01:57]} Bxg3+ {[%emt 0:02:43]} 47. Kg2 {[%emt 0:00:39]} Bd5+ {[%emt 0:01:25]} 48. Kf1 {[%emt 0:00:20]} Kf4 {[%emt 0:01:14]} 49. a4 {[%emt 0:00:34]} Bc4+ {[%emt 0:01:18]} 50. Kg2 {[%emt 0:00:56]} Be1 {[%emt 0:00:04]} 51. c6 {[%emt 0:01:35]} Ba5 {[%emt 0:00:13]} 52. Kf2 {[%emt 0:00:49]} Ke4 {[%emt 0:00:33]} 53. Bc8 {[%emt 0:00:38]} f4 {[%emt 0:00:23]} 54. Bb7 {[%emt 0:00:06]} Bb6+ {[%emt 0:00:09]} 55. Ke1 {[%emt 0:00:44]} Bd5 {[%emt 0:00:37]} 56. Kf1 {[%emt 0:01:06]} Ke3 {[%emt 0:00:14]} 0-1

[Event "22nd Ruzomberok Open 2019"]
[Site "Ruzomberok"]
[Date "2019.06.30"]
[Round "2.24"]
[White "Bemak, Mikhail"]
[Black "Staffen, Robert"]
[Result "1-0"]
[ECO "D80"]
[WhiteElo "2102"]
[BlackElo "1683"]
[Annotator "NA"]
[PlyCount "45"]
[EventDate "2019.06.29"]
[EventType "swiss"]
[EventCountry "SVK"]
[SourceTitle "playchess.com"]
[Source "ChessBase"]
[SourceQuality "1"]
[TimeControl "40/5400+30:1800+30"]

1. d4 {[%emt 0:00:12]} Nf6 {[%emt 0:00:00]} 2. c4 {[%emt 0:00:02]} g6 {[%emt 0:00:04]} 3. Nc3 {[%emt 0:00:12]} d5 {[%emt 0:00:18]} 4. Bg5 {[%emt 0:00:24]} Ne4 {[%emt 0:02:45]} 5. Bh4 {[%emt 0:00:19]} Nxc3 {[%emt 0:00:27]} 6. bxc3 {[%emt 0:00:05]} Bg7 {[%emt 0:00:26]} 7. e3 {[%emt 0:00:28]} O-O 8. Nf3 c5 {[%emt 0:02:37]} 9. Nd2 {[%emt 0:26:52]} Nc6 {[%emt 0:04:05]} 10. Be2 {[%emt 0:01:39]} Bf5 {[%emt 0:01:29]} 11. O-O {[%emt 0:01:26]} Rc8 {[%emt 0:02:34]} 12. cxd5 {[%emt 0:08:29]} Qxd5 {[%emt 0:04:04]} 13. e4 {[%emt 0:01:09]} Bxe4 {[%emt 0:05:39]} 14. Bc4 {[%emt 0:00:15]} Qf5 {[%emt 0:03:31]} 15. g4 {[%emt 0:00:14]} Bc2 {[%emt 0:03:48]} 16. gxf5 {[%emt 0:00:46]} Bxd1 {[%emt 0:00:15]} 17. Raxd1 {[%emt 0:00:19]} cxd4 {[%emt 0:00:25]} 18. cxd4 {[%emt 0:00:13]} Bxd4 {[%emt 0:09:08]} 19. fxg6 {[%emt 0:01:21]} hxg6 {[%emt 0:00:52]} 20. Nf3 {[%emt 0:02:44]} e5 {[%emt 0:06:00]} 21. Bf6 {[%emt 0:11:08]} Nb4 {[%emt 0:18:05]} 22. Bb3 {[%emt 0:03:01]} Nc6 {[%emt 0:06:04]} 23. Rfe1 {[%emt 0:01:58]} 1-0

[Event "22nd Ruzomberok Open 2019"]
[Site "Ruzomberok"]
[Date "2019.06.30"]
[Round "2.25"]
[White "Mikulec, Martin"]
[Black "Cernekova, Martina"]
[Result "0-1"]
[ECO "B53"]
[WhiteElo "1875"]
[BlackElo "1659"]
[Annotator "NA"]
[PlyCount "196"]
[EventDate "2019.06.29"]
[EventType "swiss"]
[EventCountry "SVK"]
[SourceTitle "playchess.com"]
[Source "ChessBase"]
[SourceQuality "1"]
[TimeControl "40/5400+30:1800+30"]

1. e4 c5 2. Nf3 d6 3. d4 cxd4 4. Qxd4 Nc6 5. Bb5 Qa5+ 6. Nc3 Bd7 7. Bxc6 Bxc6 8. O-O e5 9. Qd3 h6 10. Rd1 Nf6 11. a3 Be7 12. b4 Qc7 13. Nb5 Bxb5 14. Qxb5+ Qc6 15. Qxc6+ bxc6 16. Nh4 Nxe4 17. Nf5 g5 18. f3 Nc3 19. Rd3 Ne2+ 20. Kf2 Nxc1 21. Rxc1 d5 22. c4 d4 23. Re1 f6 24. Nxe7 Kxe7 25. Rxd4 Rhd8 26. Rdd1 h5 27. g4 hxg4 28. fxg4 a5 29. Kf3 axb4 30. Rxd8 Rxd8 31. axb4 Rd4 32. Re4 Rd3+ 33. Re3 Rd4 34. Rc3 Rd2 35. h3 Rb2 36. b5 cxb5 37. c5 Kd7 38. c6+ Kc7 39. Ke4 Rb4+ 40. Kd5 Rd4+ 41. Ke6 Rd6+ 42. Kf5 Rxc6 43. Rb3 Kb6 44. Rb1 Ka5 45. Ra1+ Kb4 46. Rb1+ Kc5 47. Rc1+ Kd6 48. Rb1 Kc5 49. Rc1+ Kb6 50. Rb1 Rc3 51. Kxf6 Rxh3 52. Kxg5 e4 53. Kf4 e3 54. g5 Rh4+ 55. Kf5 Rh2 56. Rg1 Rf2+ 57. Kg4 e2 58. Re1 Rg2+ 59. Kf3 Rxg5 60. Rxe2 b4 61. Re8 Kc5 62. Ke2 Kc4 63. Kd2 Kb3 64. Kc1 Rg1+ 65. Kd2 Kb2 66. Rc8 b3 67. Rc7 Kb1 68. Rb7 b2 69. Rb8 Rg2+ 70. Kd1 Rg1+ 71. Kd2 Rc1 72. Rb7 Rc2+ 73. Kd1 Rc3 74. Kd2 Ra3 75. Rb6 Ka1 76. Kc2 Ra2 77. Rxb2 Rxb2+ 78. Kc3 Ka2 79. Kc4 Rb3 80. Kc5 Ka3 81. Kc4 Rb4+ 82. Kc5 Ka4 83. Kc6 Rb5 84. Kc7 Ka5 85. Kc6 Kb4 86. Kd6 Rc5 87. Ke6 Kc4 88. Kd6 Kd4 89. Ke6 Rd5 90. Kf6 Re5 91. Kg6 Ke4 92. Kf6 Kf4 93. Kg6 Rf5 94. Kh6 Rg5 95. Kh7 Kf5 96. Kh6 Rg1 97. Kh7 Kf6 98. Kh6 Rh1# 0-1

[Event "22nd Ruzomberok Open 2019"]
[Site "Ruzomberok"]
[Date "2019.06.30"]
[Round "2.26"]
[White "Galbavy, Dusan"]
[Black "Ucekajova, Veronika"]
[Result "1/2-1/2"]
[ECO "C06"]
[WhiteElo "1704"]
[BlackElo "1836"]
[Annotator "NA"]
[PlyCount "63"]
[EventDate "2019.06.29"]
[EventType "swiss"]
[EventCountry "SVK"]
[SourceTitle "playchess.com"]
[Source "ChessBase"]
[SourceQuality "1"]
[TimeControl "40/5400+30:1800+30"]

1. e4 {[%emt 0:00:00]} e6 {[%emt 0:00:00]} 2. d4 {[%emt 0:00:00]} d5 {[%emt 0:00:00]} 3. Nd2 {[%emt 0:00:18]} Nf6 {[%emt 0:00:17]} 4. e5 {[%emt 0:00:17]} Nfd7 {[%emt 0:00:12]} 5. Bd3 {[%emt 0:00:41]} c5 {[%emt 0:00:32]} 6. c3 {[%emt 0:00:24]} Nc6 {[%emt 0:00:12]} 7. Ne2 {[%emt 0:00:35]} cxd4 {[%emt 0:00:21]} 8. cxd4 {[%emt 0:00:12]} f6 {[%emt 0:00:34]} 9. exf6 {[%emt 0:00:45]} Nxf6 {[%emt 0:00:15]} 10. O-O {[%emt 0:00:23]} Bd6 {[%emt 0:00:32]} 11. Nf3 {[%emt 0:00:18]} Qc7 {[%emt 0:00:55]} 12. Bd2 {[%emt 0:02:59]} O-O {[%emt 0:01:26]} 13. Rc1 {[%emt 0:03:14]} Bd7 {[%emt 0:05:29]} 14. b4 {[%emt 0:01:33]} a6 {[%emt 0:01:22]} 15. Qc2 {[%emt 0:02:23]} h6 {[%emt 0:13:59]} 16. Ng3 {[%emt 0:02:08]} Qb6 {[%emt 0:04:14]} 17. Qb2 {[%emt 0:06:16]} Be8 {[%emt 0:12:35]} 18. a3 {[%emt 0:02:17]} Nh5 {[%emt 0:00:45]} 19. Be3 {[%emt 0:04:20]} Nf4 {[%emt 0:07:57]} 20. Bb1 {[%emt 0:01:58]} Ne7 {[%emt 0:00:59]} 21. Ne5 {[%emt 0:01:49]} Bxe5 {[%emt 0:10:31]} 22. dxe5 {[%emt 0:00:14]} Qd8 {[%emt 0:00:08]} 23. Qd2 {[%emt 0:02:38]} Nfg6 {[%emt 0:08:54]} 24. Bxh6 {[%emt 0:04:37]} gxh6 {[%emt 0:15:45]} 25. Qxh6 {[%emt 0:03:45]} Nf5 {[%emt 0:00:10]} 26. Bxf5 {[%emt 0:05:04]} exf5 {[%emt 0:00:20]} 27. Nh5 {[%emt 0:02:05]} Qe7 {[%emt 0:00:18]} 28. Nf6+ {[%emt 0:03:13]} Rxf6 {[%emt 0:00:47]} 29. exf6 {[%emt 0:00:13]} Qxf6 {[%emt 0:00:06]} 30. Rc7 {[%emt 0:01:15]} Bf7 {[%emt 0:00:45]} 31. Rfc1 {[%emt 0:00:31]} Re8 {[%emt 0:00:44]} 32. Rc8 {[%emt 0:03:40]} 1/2-1/2